bitfinex/quotes_ETHUSD_20240730
["timestamp","ask_amount","ask_price","bid_price","bid_amount"]
[1722317514143,2.41575,3311.6,3311.3,35.0]
[1722317515502,2.41583,3311.5,3311.3,35.0]
[1722317515801,2.41589,3311.4,3311.3,35.0]
[1722317516207,2.44392454,3311.4,3311.3,35.0]
[1722317516402,3.04580101,3311.4,3311.3,35.0]
[1722317516608,3.04578028,3311.4,3311.3,35.0]
[1722317516819,5.65178457,3311.4,3311.3,35.0]
[1722317517031,2.41629,3310.9,3310.5,2.304]
[1722317517237,2.41629,3310.9,3310.4,1.007]
[1722317517238,2.41636,3310.8,3310.4,1.007]
[1722317517434,2.44435181,3310.8,3310.4,1.007]
[1722317517689,2.44435181,3310.8,3310.2,2.304]
[1722317517690,2.4164,3310.7,3310.6,35.0]
[1722317518295,2.65804,3310.7,3310.6,35.0]
[1722317518588,5.07444,3310.7,3310.6,35.0]
[1722317518799,5.7036983,3310.7,3310.6,35.0]
[1722317519362,5.10212318,3310.7,3310.6,35.0]
[1722317520089,2.68572318,3310.7,3310.6,35.0]
[1722317520298,2.44408318,3310.7,3310.6,35.0]
[1722317520588,0.02768318,3310.7,3310.6,35.0]
[1722317520900,2.4164,3310.7,3310.6,35.0]
[1722317521489,5.43440446,3310.7,3310.6,35.0]
[1722317521672,7.87848764,3310.7,3310.6,35.0]
[1722317521874,2.41681,3310.2,3309.6,2.3213]
[1722317522186,0.02736026,3310.1,3309.7,1.007]
[1722317522362,2.41671,3310.3,3309.8,35.0]
[1722317522689,0.02735076,3310.2,3309.8,35.0]
[1722317523218,0.02735076,3310.1,3309.8,35.0]
[1722317523548,2.41677,3310.2,3309.8,35.0]
[1722317523748,0.02730801,3310.1,3309.8,35.0]
[1722317523985,2.41677,3310.2,3309.8,35.0]
[1722317524196,2.44415801,3310.1,3309.8,35.0]
[1722317524361,2.41685,3310.1,3309.8,35.0]
[1722317525002,2.41699,3309.9,3309.8,35.0]
[1722317525685,2.44429801,3309.9,3309.8,35.0]
[1722317527760,4.86128801,3309.9,3309.8,35.0]
[1722317531421,2.44429801,3309.9,3309.8,35.0]
[1722317533260,2.41699,3309.9,3309.8,35.0]
[1722317542080,4.83398,3309.9,3309.8,35.0]
[1722317542387,5.317378,3309.9,3309.8,35.0]
[1722317542619,10.604168,3309.9,3309.8,35.0]
[1722317542826,8.187178,3309.9,3309.8,35.0]
[1722317543587,2.41743,3309.3,3309.1,1.007]
[1722317544091,2.41728,3309.5,3309.2,35.0]
[1722317544293,2.41736,3309.4,3309.2,35.0]
[1722317544487,2.41721,3309.6,3309.2,35.0]
[1722317545030,2.8698,3309.9,3309.2,35.0]
[1722317545229,2.41721,3309.6,3309.2,35.0]
[1722317545382,0.28698,3309.8,3309.2,35.0]
[1722317545383,2.41742,3309.3,3309.2,35.0]
[1722317548337,2.41737,3309.4,3309.2,35.0]
[1722317549085,4.67577,3309.4,3309.2,35.0]
[1722317549389,2.41742,3309.3,3309.2,35.0]
[1722317549888,4.83484,3309.3,3309.2,35.0]
[1722317550092,5.544164,3309.3,3309.2,35.0]
[1722317550690,7.961584,3309.3,3309.2,35.0]
[1722317550899,2.41796,3308.6,3308.2,1.007]
[1722317551402,2.41801,3308.5,3308.3,35.0]
[1722317551625,2.41779,3308.8,3308.3,35.0]
[1722317551626,2.41791,3308.7,3308.3,35.0]
[1722317552343,2.41791,3308.7,3308.4,1.007]
[1722317553038,2.41791,3308.7,3308.5,35.0]
[1722317553373,2.41794,3308.6,3308.5,35.0]
[1722317554340,2.41794,3308.6,3308.5,36.007]
[1722317554825,2.4178,3308.8,3308.5,36.007]
[1722317555023,2.41777,3308.9,3308.5,36.007]
[1722317555249,2.41765,3309.0,3308.5,38.78578317]
[1722317555250,2.41779,3308.8,3308.5,38.78578317]
[1722317555455,2.41779,3308.8,3308.5,36.007]
[1722317557697,2.41786,3308.7,3308.5,36.007]
[1722317558060,2.41786,3308.7,3308.5,35.0]
[1722317560101,2.41781,3308.8,3308.5,36.007]
[1722317560294,2.41772,3308.9,3308.5,36.007]
[1722317560591,2.41792,3308.7,3308.5,35.0]
[1722317560970,9.7797,3309.2,3308.5,35.0]
[1722317560971,2.41794,3308.6,3308.5,35.0]
[1722317564895,2.41779,3308.8,3308.5,35.0]
[1722317565424,2.41788,3308.7,3308.5,35.0]
[1722317566544,2.41788,3308.7,3308.3,1.007]
[1722317567225,2.41788,3308.7,3308.4,35.0]
[1722317568633,2.4965,3308.8,3308.4,35.0]
[1722317568936,2.41801,3308.5,3308.4,35.0]
[1722317569534,4.83602,3308.5,3308.4,35.0]
[1722317569722,4.83602,3308.5,3307.7,2.4928]
[1722317569723,0.725389,3308.5,3307.7,3.4998]
[1722317569882,2.41832,3308.1,3307.7,3.4998]
[1722317570321,2.41832,3308.1,3307.8,35.0]
[1722317571444,3.5035,3308.8,3307.9,1.007]
[1722317571445,2.41807,3308.5,3307.9,1.007]
[1722317571652,2.41807,3308.5,3308.1,1.007]
[1722317572059,2.41807,3308.5,3308.2,35.0]
[1722317572453,4.91432,3308.8,3308.2,35.0]
[1722317572657,4.91432,3308.8,3308.3,1.007]
[1722317572839,2.41782,3308.8,3308.3,1.007]
[1722317573182,2.41765,3309.0,3308.3,1.007]
[1722317573183,2.41787,3308.7,3308.3,1.007]
[1722317573341,2.41777,3308.9,3308.4,35.0]
[1722317573685,7.37,3309.2,3308.5,1.007]
[1722317573886,7.37,3309.2,3308.4,2.56362997]
[1722317573887,2.41765,3309.0,3308.4,2.56362997]
[1722317574089,2.41765,3309.0,3308.3,1.007]
[1722317574090,4.86872,3308.9,3308.3,1.007]
[1722317574291,2.41801,3308.5,3308.1,1.007]
[1722317574869,2.41801,3308.5,3308.4,35.0]
[1722317576167,2.41792,3308.7,3308.4,35.0]
[1722317576781,2.4178,3308.8,3308.4,35.0]
[1722317576981,9.6895,3309.2,3308.5,1.007]
[1722317577154,2.41801,3308.5,3308.4,35.0]
[1722317577492,4.83602,3308.5,3308.4,35.0]
[1722317578056,2.41847,3307.9,3307.4,1.007]
[1722317578293,2.41847,3307.9,3307.2,1.007]
[1722317578294,2.41865,3307.7,3307.2,1.007]
[1722317578453,2.41865,3307.7,3307.5,35.0]
[1722317578658,2.41824,3308.2,3307.5,35.0]
[1722317578911,0.55,3308.1,3307.5,35.0]
[1722317579194,2.41867,3307.6,3307.5,35.0]
[1722317579380,4.83734,3307.6,3307.5,35.0]
[1722317579559,7.71154,3307.6,3307.5,35.0]
[1722317580186,5.29287,3307.6,3307.5,35.0]
[1722317580911,5.29287,3307.6,3307.4,1.007]
[1722317580912,2.41873,3307.6,3307.4,1.007]
[1722317581208,2.41873,3307.6,3306.8,2.41924]
[1722317581209,2.41875,3307.5,3306.8,2.41924]
[1722317581418,2.41883,3307.4,3306.9,35.0]
[1722317581579,2.41912,3307.0,3306.6,0.145148]
[1722317581785,2.8439,3307.3,3306.6,0.145148]
[1722317581786,2.2939,3307.3,3306.6,0.145148]
[1722317582109,2.2939,3307.3,3306.6,35.145148]
[1722317582463,2.41897,3307.2,3306.6,35.145148]
[1722317582825,2.4191,3307.1,3306.6,35.145148]
[1722317583009,2.2939,3307.3,3306.6,35.145148]
[1722317583212,0.77939,3307.2,3306.6,35.145148]
[1722317583379,2.41924,3306.9,3306.6,0.145148]
[1722317583707,7.24586,3306.7,3306.6,0.145148]
[1722317584067,7.79586,3306.7,3306.6,0.145148]
[1722317584868,10.21519,3306.7,3306.6,0.145148]
[1722317585107,7.79586,3306.7,3306.6,0.145148]
[1722317585478,10.21519,3306.7,3306.6,0.145148]
[1722317585670,8.817379,3306.7,3306.6,0.145148]
[1722317586065,14.420709,3306.7,3306.6,8e-06]
[1722317586312,22.259369,3306.7,3306.6,8e-06]
[1722317586463,20.44069989,3306.7,3306.6,8e-06]
[1722317586816,19.840039,3306.7,3306.6,8e-06]
[1722317588307,2.42029,3305.4,3305.1,35.0]
[1722317588608,2.42007,3305.7,3305.1,35.0]
[1722317588821,0.55,3305.6,3305.1,35.0]
[1722317589021,4.84084,3305.2,3305.1,35.0]
[1722317589169,5.39084,3305.2,3305.1,35.0]
[1722317589517,0.55,3305.2,3305.1,35.0]
[1722317589813,5.68467,3305.2,3305.1,35.0]
[1722317590311,5.68467,3305.2,3304.3,0.00585359]
[1722317590312,2.42101,3304.4,3304.3,0.00585359]
[1722317590606,0.84383,3305.2,3304.3,0.00585359]
[1722317590607,2.42067,3304.9,3304.3,0.00585359]
[1722317590914,2.42072,3304.8,3304.4,35.0]
[1722317591080,2.42081,3304.7,3304.4,35.0]
[1722317591288,2.42094,3304.5,3304.4,35.0]
[1722317591672,2.97094,3304.5,3304.4,35.0]
[1722317592072,2.42072,3304.8,3304.4,35.0]
[1722317592289,2.42087,3304.6,3304.4,35.0]
[1722317592701,2.97079,3304.7,3304.4,35.0]
[1722317592940,0.55,3304.7,3304.4,35.0]
[1722317593108,2.42058,3305.0,3304.4,35.0]
[1722317593286,2.71426,3305.2,3304.4,35.0]
[1722317593287,0.29383,3305.2,3304.4,35.0]
[1722317593627,2.42021,3305.5,3304.6,2.42085]
[1722317593770,2.42021,3305.5,3304.7,2.42073]
[1722317593973,2.42029,3305.4,3304.6,2.42084]
[1722317594198,3.184,3305.8,3304.8,35.0]
[1722317594403,2.42058,3305.0,3304.8,35.0]
[1722317594908,2.96543,3305.7,3304.8,35.0]
[1722317594909,2.42064,3304.9,3304.8,35.0]
[1722317595335,2.42019,3305.6,3304.8,35.0]
[1722317595633,4.73256,3306.2,3304.8,35.0]
[1722317595835,2.42057,3305.1,3304.8,35.0]
[1722317596787,7.37,3305.6,3304.8,35.0]
[1722317597043,0.55,3305.5,3304.8,35.0]
[1722317597205,0.55,3305.5,3305.0,2.42055]
[1722317597589,7.37,3306.0,3305.0,2.4197]
[1722317597918,2.41955,3306.4,3305.0,2.4197]
[1722317598121,2.41984,3306.0,3305.2,2.42041]
[1722317598439,2.41971,3306.2,3305.4,2.42026]
[1722317598638,7.37,3306.5,3305.4,2.42027]
[1722317598639,2.41977,3306.1,3305.4,2.42027]
[1722317598943,2.41977,3306.1,3305.0,4.8407]
[1722317598944,2.41984,3306.0,3305.1,2.42044]
[1722317599153,2.41984,3306.0,3305.5,35.0]
[1722317599452,0.241977,3306.1,3305.5,35.0]
[1722317599733,9.78948,3306.5,3305.5,35.0]
[1722317599734,7.37,3306.5,3305.5,35.0]
[1722317599946,2.41985,3306.0,3305.5,35.0]
[1722317601119,2.41964,3306.3,3305.5,35.0]
[1722317601317,7.37,3306.5,3305.5,2.4202]
[1722317601502,0.737,3306.4,3305.5,2.4202]
[1722317601722,7.37,3306.5,3305.5,2.42019]
[1722317601907,7.37,3306.5,3305.9,35.0]
[1722317602104,2.41941,3306.6,3305.9,37.4199]
[1722317602415,2.41947,3306.5,3305.9,35.0]
[1722317602618,0.241941,3306.6,3305.9,35.0]
[1722317602819,10.554,3307.0,3305.9,35.0]
[1722317603050,2.41955,3306.4,3305.9,35.0]
[1722317603202,2.41984,3306.0,3305.9,35.0]
[1722317603406,4.83968,3306.0,3305.9,35.0]
[1722317603606,5.873648,3306.0,3305.9,35.0]
[1722317605547,2.42007,3305.7,3305.0,2.42056]
[1722317605908,2.42007,3305.7,3305.3,35.0]
[1722317606810,2.3347,3305.6,3304.3,0.00585359]
[1722317607057,2.42038,3305.3,3304.3,2.42693359]
[1722317607245,2.42059,3305.0,3304.3,0.00585359]
[1722317607554,3.20368,3305.5,3304.7,2.42073]
[1722317607908,0.78347,3305.5,3304.8,2.4207]
[1722317608323,2.41999,3305.8,3304.4,2.2852]
[1722317608324,2.41999,3305.8,3304.9,35.0]
[1722317608657,0.55,3305.7,3304.9,35.0]
[1722317608966,0.55,3305.7,3305.0,2.42056]
[1722317609168,2.42006,3305.7,3305.0,2.42056]
[1722317609531,2.42014,3305.6,3304.9,35.0]
[1722317609707,2.42014,3305.6,3304.9,37.42064]
[1722317609907,0.55,3305.9,3305.1,2.42044]
[1722317610211,2.41985,3306.0,3305.2,2.42042]
[1722317610411,2.41983,3306.1,3305.0,2.4091]
[1722317610617,2.96983,3306.1,3305.3,35.0]
[1722317610920,2.41984,3306.0,3305.3,37.42034]
[1722317611121,0.55,3306.1,3305.3,37.42034]
[1722317611330,0.55,3306.1,3305.6,2.42013]
[1722317612115,7.37,3306.2,3305.7,2.42005]
[1722317612319,2.41948,3306.5,3305.8,2.41998]
[1722317612651,2.41955,3306.4,3305.6,2.42013]
[1722317612867,2.41955,3306.4,3305.9,35.0]
[1722317613730,2.41969,3306.2,3305.9,35.0]
[1722317613913,2.41959,3306.4,3305.9,35.0]
[1722317614110,2.4197,3306.2,3305.9,35.0]
[1722317614337,2.41975,3306.2,3305.9,35.0]
[1722317614558,2.41979,3306.1,3305.9,35.0]
[1722317615254,2.41984,3306.0,3305.9,35.0]
[1722317616560,5.38968,3306.0,3305.9,35.0]
[1722317616916,2.96984,3306.0,3305.9,35.0]
[1722317617745,0.55,3306.0,3305.9,35.0]
[1722317620237,2.96984,3306.0,3305.9,35.0]
[1722317620456,3.508793,3306.0,3305.9,35.0]
[1722317620925,2.41995,3305.9,3305.0,2.4091]
[1722317621122,0.55,3305.8,3305.0,4.82966]
[1722317621321,0.55,3305.8,3305.3,35.0]
[1722317621525,0.538953,3306.0,3305.3,35.0]
[1722317621754,2.41978,3306.1,3305.3,35.0]
[1722317621969,0.55,3306.0,3305.3,35.0]
[1722317622353,0.55,3306.0,3305.4,2.42022]
[1722317622554,0.55,3306.0,3305.3,37.42033]
[1722317622754,10.782734,3306.6,3305.3,35.0]
[1722317622755,2.42019,3305.6,3305.3,35.0]
[1722317622932,2.904209,3305.6,3305.3,35.0]
[1722317623128,2.97026,3305.5,3305.3,35.0]
[1722317623470,4.84056,3305.4,3305.3,35.0]
[1722317623769,5.39056,3305.4,3305.3,35.0]
[1722317624525,2.4204,3305.3,3304.5,2.42093]
[1722317624940,2.4204,3305.3,3304.6,35.0]
[1722317625141,0.55,3305.4,3304.6,40.46986288]
[1722317625340,0.55,3305.4,3304.8,2.42071]
[1722317625836,2.4338,3305.9,3304.8,2.42071]
[1722317625837,2.4338,3305.9,3304.8,4.78291]
[1722317626355,2.42007,3305.7,3305.0,2.42056]
[1722317626541,2.42007,3305.7,3305.1,35.0]
[1722317627359,2.662197,3305.6,3305.1,35.0]
[1722317627796,2.42021,3305.5,3305.1,35.0]
[1722317627983,0.55,3305.5,3305.1,35.0]
[1722317628189,4.85373,3305.9,3305.1,35.0]
[1722317628364,0.55,3305.8,3305.2,2.42042]
[1722317628978,0.846993,3305.8,3305.1,35.0]
[1722317629160,2.42011,3305.7,3305.1,35.0]
[1722317629859,0.55,3305.8,3305.2,2.42037]
[1722317630059,0.55,3305.8,3305.3,2.42035]
[1722317630260,0.55,3306.0,3305.3,2.42035]
[1722317630588,2.716821,3306.0,3305.3,2.42035]
[1722317630787,0.55,3306.1,3305.5,2.4202]
[1722317631376,0.55,3306.1,3305.6,2.42011]
[1722317631717,0.55,3306.1,3305.5,2.4202]
[1722317631863,7.37,3306.6,3305.6,0.06050406]
[1722317632064,7.37,3306.6,3305.5,2.42019]
[1722317632065,1.208442,3306.6,3305.5,2.42019]
[1722317632265,4.71443,3306.7,3305.5,2.42019]
[1722317632506,4.71443,3306.7,3305.7,35.0]
[1722317632805,4.71443,3306.7,3306.0,2.41979]
[1722317633020,4.71443,3306.7,3305.8,2.41997]
[1722317633182,4.71443,3306.7,3305.9,2.4199]
[1722317633507,1.021443,3306.6,3306.1,35.0]
[1722317634898,3.440863,3306.6,3306.1,35.0]
[1722317635818,1.021443,3306.6,3306.1,35.0]
[1722317638579,3.440843,3306.6,3305.9,2.41991]
[1722317638782,0.5735883,3306.5,3305.9,2.41991]
[1722317639032,0.55,3306.4,3306.0,35.0]
[1722317639183,0.55,3306.4,3306.0,37.41983]
[1722317639882,0.5735883,3306.5,3306.0,35.0]
[1722317640497,2.41971,3306.2,3306.0,35.0]
[1722317640823,2.41982,3306.1,3305.3,2.4203]
[1722317641030,0.55,3306.0,3305.3,2.4203]
[1722317641383,0.55,3306.0,3305.4,37.42027]
[1722317641611,2.41982,3306.1,3305.4,37.42027]
[1722317641612,2.41982,3306.1,3305.4,35.0]
[1722317642311,2.41985,3306.0,3305.4,35.0]
[1722317642510,2.96991,3305.9,3305.4,35.0]
[1722317644298,0.55,3305.9,3305.4,35.0]
[1722317644499,4.69294,3306.3,3305.4,37.42027]
[1722317644703,2.41969,3306.2,3305.4,37.42027]
[1722317645007,2.41969,3306.2,3305.6,2.42012]
[1722317645326,2.2733,3306.3,3305.8,2.41993]
[1722317645643,7.37,3306.5,3305.9,2.4199]
[1722317645811,0.55,3306.4,3305.7,2.42005]
[1722317646014,0.55,3306.4,3305.9,2.4199]
[1722317646842,7.37,3306.5,3306.1,2.4197]
[1722317647024,2.3149,3306.7,3306.1,2.4197]
[1722317647226,2.3149,3306.7,3306.2,35.0]
[1722317648906,7.37,3307.0,3306.2,35.0]
[1722317649113,0.55,3306.9,3306.3,2.41962]
[1722317649340,0.55,3306.9,3306.4,2.4195]
[1722317649341,1.768473,3306.9,3306.4,2.4195]
[1722317649640,4.187713,3306.9,3306.2,2.41966]
[1722317649849,2.41926,3306.8,3306.0,4.71449]
[1722317649996,2.41926,3306.8,3306.0,2.2947]
[1722317649997,3.23629539,3306.8,3306.0,2.2947]
[1722317651147,3.23629539,3306.8,3306.1,2.41971]
[1722317651333,2.41934,3306.7,3306.0,4.71452]
[1722317651502,2.41934,3306.7,3306.1,2.41976]
[1722317651706,2.41926,3306.8,3306.1,2.41976]
[1722317652239,0.55,3306.9,3306.2,2.41969]
[1722317652443,0.55,3306.9,3306.3,2.41962]
[1722317652651,1.086481,3306.9,3306.4,2.41954]
[1722317652955,1.086481,3306.9,3305.3,4.84133]
[1722317652956,3.505681,3306.9,3305.5,2.3171]
[1722317653103,3.505681,3306.9,3306.1,2.41976]
[1722317653104,2.41926,3306.8,3306.1,2.41976]
[1722317653302,0.55,3306.7,3305.9,2.4199]
[1722317653543,2.41945,3306.6,3305.9,2.4199]
[1722317653845,0.55,3306.5,3306.0,2.41984]
[1722317654048,2.96933,3306.7,3306.0,2.41984]
[1722317654216,2.41951,3306.5,3305.7,2.42005]
[1722317654417,2.41951,3306.5,3305.6,2.42009]
[1722317654418,2.41962,3306.3,3305.6,2.42009]
[1722317654629,0.55,3306.2,3305.7,2.42005]
[1722317655144,4.68494,3306.5,3305.7,2.42005]
[1722317655145,0.55,3306.4,3305.7,2.42005]
[1722317655442,2.96957,3306.4,3305.7,2.42005]
[1722317655643,3.7646943,3306.4,3305.5,2.42016]
[1722317655946,2.41984,3306.0,3305.4,2.42027]
[1722317656154,0.55,3305.9,3305.5,2.4202]
[1722317656346,2.41974,3306.2,3305.6,2.42012]
[1722317656510,0.55,3306.1,3305.6,2.42012]
[1722317656851,0.55,3306.1,3305.7,2.42003]
[1722317657024,0.55,3306.3,3305.6,2.42012]
[1722317657349,0.55,3306.4,3305.6,2.42012]
[1722317657549,0.523487,3306.3,3305.6,2.42012]
[1722317657724,0.523487,3306.3,3305.4,2.42027]
[1722317657725,0.55,3306.2,3305.4,2.42027]
[1722317658108,0.55,3306.2,3305.1,2.4724]
[1722317658109,0.55,3306.2,3305.5,2.4202]
[1722317658925,0.55,3306.2,3305.7,2.42001]
[1722317660449,0.55,3306.2,3305.5,2.4202]
[1722317660667,0.8993047,3306.2,3305.5,2.4202]
[1722317660847,2.4478,3305.9,3305.2,2.42042]
[1722317661167,0.55,3305.8,3305.2,2.42042]
[1722317661653,0.55,3305.8,3305.0,2.42051]
[1722317661864,0.55,3305.8,3305.1,2.42048]
[1722317662465,3.511764,3305.8,3304.9,2.42064]
[1722317662817,1.091764,3305.8,3305.0,2.42057]
[1722317663348,0.55,3305.8,3305.0,2.42057]
[1722317663670,0.55,3305.8,3305.1,2.4205]
[1722317663839,0.55,3305.8,3305.2,2.4204]
[1722317664219,4.77253,3306.3,3305.4,2.42027]
[1722317664444,3.55,3306.2,3305.4,2.42027]
[1722317666392,6.801963,3306.2,3305.0,2.42057]
[1722317666538,2.445,3305.8,3305.0,2.42057]
[1722317666745,0.55,3305.7,3305.1,2.4205]
[1722317667846,0.55,3305.7,3304.9,2.42064]
[1722317668116,0.55,3305.7,3305.0,2.42057]
[1722317668445,2.3339,3306.1,3305.3,2.42035]
[1722317668691,0.55,3306.0,3305.3,2.42035]
[1722317668865,0.55,3306.0,3305.2,2.421]
[1722317669190,0.55,3306.0,3305.2,4.84142]
[1722317669896,2.96985,3306.0,3305.2,2.421]
[1722317670059,1.380367,3306.0,3305.2,2.421]
[1722317671365,1.380367,3306.0,3305.2,4.84141]
[1722317672383,1.380367,3306.0,3305.3,2.42033]
[1722317672783,2.3339,3306.1,3305.4,2.4807756]
[1722317673012,2.41947,3306.5,3305.6,2.42013]
[1722317673013,2.2501,3306.4,3305.6,2.42013]
[1722317673181,2.2501,3306.4,3305.4,2.42027]
[1722317673182,4.66971,3306.4,3305.4,2.42027]
[1722317674517,0.55,3306.3,3305.6,2.42013]
[1722317674702,0.55,3306.3,3305.6,0.48404]
[1722317674905,0.55,3306.3,3305.4,2.42027]
[1722317675642,0.55,3306.3,3305.2,7.2249]
[1722317675643,0.55,3306.3,3305.5,2.42018]
[1722317676177,0.55,3306.3,3305.7,2.42005]
[1722317677234,0.55,3306.3,3305.5,2.42018]
[1722317679464,0.55,3306.3,3305.3,2.42033]
[1722317679598,1.071965,3306.3,3305.4,2.42028]
[1722317679799,2.2512,3306.0,3305.2,2.421]
[1722317679995,2.2512,3306.0,3305.2,4.84142]
[1722317679996,0.55,3305.9,3305.2,4.84142]
[1722317681195,0.55,3305.9,3305.2,2.421]
[1722317681699,0.55,3305.9,3305.2,4.84142]
[1722317683252,0.55,3305.9,3305.2,2.421]
[1722317683458,1.072107,3305.9,3305.2,2.421]
[1722317684148,1.072107,3305.9,3305.5,35.0]
[1722317688953,1.072107,3305.9,3305.2,2.421]
[1722317689252,0.55,3305.9,3305.3,35.0]
[1722317690353,2.2512,3306.0,3305.4,2.42022]
[1722317691056,2.2512,3306.0,3305.5,35.0]
[1722317691369,2.2512,3306.0,3305.5,37.42019]
[1722317691938,2.2512,3306.0,3305.5,40.46920288]
[1722317693643,2.2512,3306.0,3305.6,2.42009]
[1722317694667,2.2602,3306.7,3305.6,2.4814991]
[1722317694869,1.15062416,3306.6,3306.0,2.421]
[1722317695092,1.19108242,3306.6,3306.0,2.421]
[1722317695226,1.19108242,3306.6,3306.3,1.01]
[1722317696064,0.55,3306.6,3306.3,1.01]
[1722317696832,0.60074192,3306.5,3306.3,1.01]
[1722317697034,0.55,3306.4,3306.1,1.01]
[1722317697230,2.4334,3306.3,3305.3,2.42033]
[1722317697573,3.26803,3306.2,3305.9,1.01]
[1722317697874,2.41977,3306.1,3305.9,1.01]
[1722317698530,2.41977,3306.1,3306.0,35.0]
[1722317698745,2.41977,3306.1,3304.7,2.42079]
[1722317698746,2.41992,3305.9,3305.0,2.42056]
[1722317698951,0.473922,3305.8,3305.6,1.01]
[1722317699145,1.023922,3305.8,3305.6,1.01]
[1722317699361,1.023922,3305.8,3305.7,35.0]
[1722317700379,0.55,3305.8,3305.7,35.0]
[1722317700589,0.55,3305.9,3305.7,35.0]
[1722317700753,0.55,3305.9,3305.8,1.01]
[1722317701149,1.15056975,3305.9,3305.7,35.0]
[1722317701352,5.50959907,3305.8,3305.7,35.0]
[1722317701570,4.48756898,3305.8,3305.7,35.0]
[1722317702127,6.90756439,3305.8,3305.7,35.0]
[1722317702290,6.90756439,3305.8,3304.5,9.6497]
[1722317702291,2.42035,3305.3,3304.5,9.6497]
[1722317702583,2.97006,3305.7,3305.2,1.01]
[1722317702801,2.97006,3305.7,3305.4,1.01]
[1722317702802,0.60054329,3305.6,3305.4,1.01]
[1722317703079,0.44875844,3305.7,3305.4,1.01]
[1722317703080,1.15054329,3305.5,3305.4,1.01]
[1722317703286,1.15054329,3305.5,3304.7,2.424]
[1722317703436,0.60054329,3305.4,3304.7,3.139463]
[1722317703632,0.55,3305.5,3304.8,35.0]
[1722317703836,0.55,3305.6,3304.8,35.0]
[1722317704078,2.309,3305.4,3304.8,35.0]
[1722317704281,0.84093522,3305.3,3304.8,35.0]
[1722317704785,4.72931,3305.4,3304.8,35.0]
[1722317704786,2.309,3305.4,3304.8,35.0]
[1722317705342,1.15045776,3305.3,3304.8,35.0]
[1722317705555,2.42044,3305.2,3304.8,35.0]
[1722317705785,0.55,3305.1,3304.8,35.0]
[1722317706153,0.55,3305.3,3304.8,35.0]
[1722317706351,2.309,3305.4,3304.8,35.0]
[1722317706556,2.4928,3305.8,3305.1,2.42044]
[1722317706854,4.83851,3306.2,3305.2,4.90487365]
[1722317707194,3.02000005,3306.1,3305.2,2.48450365]
[1722317707343,2.41978,3306.1,3305.2,2.97500301]
[1722317707885,0.57029194,3306.0,3305.2,2.97500301]
[1722317708084,0.55,3305.9,3305.2,2.91449936]
[1722317708395,2.41993,3305.9,3305.2,2.91449936]
[1722317708542,2.41993,3305.9,3305.2,2.424]
[1722317709357,2.41999,3305.8,3305.2,2.424]
[1722317709690,2.41999,3305.8,3304.9,2.42064]
[1722317710104,2.41999,3305.8,3304.8,2.424]
[1722317710105,2.42007,3305.7,3305.3,35.0]
[1722317710860,2.41991,3305.9,3305.3,35.0]
[1722317711681,2.96988,3306.0,3305.3,35.0]
[1722317711996,0.55,3306.0,3305.3,35.0]
[1722317712297,0.55,3306.1,3305.4,1.18522195]
[1722317712505,5.41949,3306.5,3305.4,3.55012557]
[1722317712506,2.41956,3306.4,3305.4,3.55012557]
[1722317712794,2.41964,3306.3,3305.4,5.90988195]
[1722317713100,2.41956,3306.4,3305.5,3.04901288]
[1722317713504,2.41963,3306.3,3305.5,3.04901288]
[1722317713661,0.55,3306.2,3305.5,3.04901288]
[1722317713858,5.41948,3306.5,3305.5,5.46921288]
[1722317714088,1.12043118,3306.4,3305.5,5.46921288]
[1722317714287,0.57044142,3306.3,3305.5,3.04901288]
[1722317714493,0.55,3306.4,3305.6,0.89588348]
[1722317715159,0.55,3306.4,3305.6,3.31600348]
[1722317715360,0.55,3306.4,3305.7,2.48052654]
[1722317715591,0.55,3306.5,3305.7,0.06049654]
[1722317715775,0.55,3306.5,3305.8,35.58005]
[1722317716177,2.41984,3306.0,3305.8,35.0]
[1722317716592,2.4197,3306.2,3305.8,35.0]
[1722317716794,0.55,3306.1,3305.8,35.0]
[1722317717417,0.55,3306.2,3305.8,35.0]
[1722317718328,0.55,3306.5,3305.8,35.0]
[1722317718485,0.57046096,3306.4,3305.8,35.0]
[1722317718817,0.55,3306.3,3305.8,35.0]
[1722317718994,2.41955,3306.4,3305.8,35.0]
[1722317719193,0.55,3306.3,3305.8,35.0]
[1722317720516,2.41934,3306.7,3305.8,40.46899288]
[1722317720716,0.55,3306.6,3305.8,40.46899288]
[1722317720961,2.96934,3306.7,3305.8,40.46899288]
[1722317721120,2.96934,3306.7,3305.8,3.04901288]
[1722317721121,2.41941,3306.6,3305.8,3.04901288]
[1722317721290,0.55,3306.5,3305.9,0.06049308]
[1722317721496,0.55,3306.7,3306.0,35.0]
[1722317722332,2.41959,3306.4,3306.0,35.0]